{"text_format":"3","workbook":"xlsx","n_sheets":1,"sheets":["Вземане на книги от библиотека"],"not_rendered":{"defined_names":4},"read":"whole","date_system":"1900"}

{"sheet":"Вземане на книги от библиотека","index":0,"n_rows":9,"n_cols":8,"rows_kept":9,"merged":[[0,1,0,4],[0,5,0,6]]}
[null,"Лист \"Вземане на книги от библиотека\"",{"$nulls":3},"ДНИ ДО ПРОСРОЧИЕ: ",null,10]
["Просрочие","УЧАЩ","ИМЕЙЛ ЗА ВРЪЗКА","ТЕЛЕФОН ЗА ВРЪЗКА","ЗАГЛАВИЕ НА КНИГАТА","ДАТА НА ЗАЕМАНЕ","ДАТА НА ВРЪЩАНЕ","ДНИ"]
[{"$f":"IFERROR(((Книги[[#This Row],[ДАТА НА ЗАЕМАНЕ]]+ДниЗаемане)<TODAY())*(LEN(Книги[[#This Row],[ДАТА НА ВРЪЩАНЕ]])=0)*(LEN(Книги[[#This Row],[ДАТА НА ЗАЕМАНЕ]])>0),0)","v":0},"Богдана Стефанова","ime@example.com","555-0100","Малка къща в прерията",{"$f":"DATE(YEAR(TODAY()),1,14)","v":"2018-01-14"},{"$f":"DATE(YEAR(TODAY()),1,21)","v":"2018-01-21"},{"$f":"IFERROR(IF(Книги[[#This Row],[ДАТА НА ВРЪЩАНЕ]]=\"\",IF(Книги[[#This Row],[ДАТА НА ЗАЕМАНЕ]]<>\"\", TODAY()-Книги[[#This Row],[ДАТА НА ЗАЕМАНЕ]],\"\"),Книги[[#This Row],[ДАТА НА ВРЪЩАНЕ]]-Книги[[#This Row],[ДАТА НА ЗАЕМАНЕ]]), \"\")","v":7}]
[{"$f":"IFERROR(((Книги[[#This Row],[ДАТА НА ЗАЕМАНЕ]]+ДниЗаемане)<TODAY())*(LEN(Книги[[#This Row],[ДАТА НА ВРЪЩАНЕ]])=0)*(LEN(Книги[[#This Row],[ДАТА НА ЗАЕМАНЕ]])>0),0)","v":0},"Златко Малеев","ime@example.com","555-0101","Паяжината на Шарлот",{"$f":"DATE(YEAR(TODAY()),2,15)","v":"2018-02-15"},{"$f":"DATE(YEAR(TODAY()),2,18)","v":"2018-02-18"},{"$f":"IFERROR(IF(Книги[[#This Row],[ДАТА НА ВРЪЩАНЕ]]=\"\",IF(Книги[[#This Row],[ДАТА НА ЗАЕМАНЕ]]<>\"\", TODAY()-Книги[[#This Row],[ДАТА НА ЗАЕМАНЕ]],\"\"),Книги[[#This Row],[ДАТА НА ВРЪЩАНЕ]]-Книги[[#This Row],[ДАТА НА ЗАЕМАНЕ]]), \"\")","v":3}]
[{"$f":"IFERROR(((Книги[[#This Row],[ДАТА НА ЗАЕМАНЕ]]+ДниЗаемане)<TODAY())*(LEN(Книги[[#This Row],[ДАТА НА ВРЪЩАНЕ]])=0)*(LEN(Книги[[#This Row],[ДАТА НА ЗАЕМАНЕ]])>0),0)","v":0},"Вълко Христов","ime@example.com","555-0102","Фантомът Толбут",{"$f":"DATE(YEAR(TODAY()),2,17)","v":"2018-02-17"},{"$f":"DATE(YEAR(TODAY()),2,22)","v":"2018-02-22"},{"$f":"IFERROR(IF(Книги[[#This Row],[ДАТА НА ВРЪЩАНЕ]]=\"\",IF(Книги[[#This Row],[ДАТА НА ЗАЕМАНЕ]]<>\"\", TODAY()-Книги[[#This Row],[ДАТА НА ЗАЕМАНЕ]],\"\"),Книги[[#This Row],[ДАТА НА ВРЪЩАНЕ]]-Книги[[#This Row],[ДАТА НА ЗАЕМАНЕ]]), \"\")","v":5}]
[{"$f":"IFERROR(((Книги[[#This Row],[ДАТА НА ЗАЕМАНЕ]]+ДниЗаемане)<TODAY())*(LEN(Книги[[#This Row],[ДАТА НА ВРЪЩАНЕ]])=0)*(LEN(Книги[[#This Row],[ДАТА НА ЗАЕМАНЕ]])>0),0)","v":0},"Явор Костов","ime@example.com","555-0103","Г-жа Фризби и плъховете от Ним",{"$f":"DATE(YEAR(TODAY()),2,17)","v":"2018-02-17"},{"$f":"DATE(YEAR(TODAY()),2,25)","v":"2018-02-25"},{"$f":"IFERROR(IF(Книги[[#This Row],[ДАТА НА ВРЪЩАНЕ]]=\"\",IF(Книги[[#This Row],[ДАТА НА ЗАЕМАНЕ]]<>\"\", TODAY()-Книги[[#This Row],[ДАТА НА ЗАЕМАНЕ]],\"\"),Книги[[#This Row],[ДАТА НА ВРЪЩАНЕ]]-Книги[[#This Row],[ДАТА НА ЗАЕМАНЕ]]), \"\")","v":8}]
[{"$f":"IFERROR(((Книги[[#This Row],[ДАТА НА ЗАЕМАНЕ]]+ДниЗаемане)<TODAY())*(LEN(Книги[[#This Row],[ДАТА НА ВРЪЩАНЕ]])=0)*(LEN(Книги[[#This Row],[ДАТА НА ЗАЕМАНЕ]])>0),0)","v":0},"Грозда Кацарова","ime@example.com","555-0104","Матилда",{"$f":"DATE(YEAR(TODAY()),2,18)","v":"2018-02-18"},{"$f":"DATE(YEAR(TODAY()),2,28)","v":"2018-02-28"},{"$f":"IFERROR(IF(Книги[[#This Row],[ДАТА НА ВРЪЩАНЕ]]=\"\",IF(Книги[[#This Row],[ДАТА НА ЗАЕМАНЕ]]<>\"\", TODAY()-Книги[[#This Row],[ДАТА НА ЗАЕМАНЕ]],\"\"),Книги[[#This Row],[ДАТА НА ВРЪЩАНЕ]]-Книги[[#This Row],[ДАТА НА ЗАЕМАНЕ]]), \"\")","v":10}]
[{"$f":"IFERROR(((Книги[[#This Row],[ДАТА НА ЗАЕМАНЕ]]+ДниЗаемане)<TODAY())*(LEN(Книги[[#This Row],[ДАТА НА ВРЪЩАНЕ]])=0)*(LEN(Книги[[#This Row],[ДАТА НА ЗАЕМАНЕ]])>0),0)","v":1},"Радослава Бачева","ime@example.com","555-0105","Хрониките на Нарния",{"$f":"DATE(YEAR(TODAY()),1,23)","v":"2018-01-23"},null,{"$f":"IFERROR(IF(Книги[[#This Row],[ДАТА НА ВРЪЩАНЕ]]=\"\",IF(Книги[[#This Row],[ДАТА НА ЗАЕМАНЕ]]<>\"\", TODAY()-Книги[[#This Row],[ДАТА НА ЗАЕМАНЕ]],\"\"),Книги[[#This Row],[ДАТА НА ВРЪЩАНЕ]]-Книги[[#This Row],[ДАТА НА ЗАЕМАНЕ]]), \"\")","v":164}]
[{"$f":"IFERROR(((Книги[[#This Row],[ДАТА НА ЗАЕМАНЕ]]+ДниЗаемане)<TODAY())*(LEN(Книги[[#This Row],[ДАТА НА ВРЪЩАНЕ]])=0)*(LEN(Книги[[#This Row],[ДАТА НА ЗАЕМАНЕ]])>0),0)","v":0},"Мила Николова","ime@example.com","555-0106","Вещицата на Червеното езеро",{"$f":"TODAY()","v":"2018-07-06"},null,{"$f":"IFERROR(IF(Книги[[#This Row],[ДАТА НА ВРЪЩАНЕ]]=\"\",IF(Книги[[#This Row],[ДАТА НА ЗАЕМАНЕ]]<>\"\", TODAY()-Книги[[#This Row],[ДАТА НА ЗАЕМАНЕ]],\"\"),Книги[[#This Row],[ДАТА НА ВРЪЩАНЕ]]-Книги[[#This Row],[ДАТА НА ЗАЕМАНЕ]]), \"\")","v":0}]